fUSD/lending_fUSD_20250109
["ID","MTS","AMOUNT","RATE_DAILY","PERIOD"]
[348227805,1736405436618,-503.51129495,9.994e-05,2]
[348227806,1736405436627,-500.0,9.994e-05,2]
[348227807,1736405436636,-500.0,9.994e-05,2]
[348227808,1736405436645,-503.2630262,9.994e-05,2]
[348227809,1736405436655,-274.64261685,9.994e-05,2]
[348227810,1736405436664,-500.0,9.994e-05,2]
[348227811,1736405436673,-501.40615841,9.994e-05,2]
[348227812,1736405436683,-500.0,9.994e-05,2]
[348227813,1736405436692,-500.0,9.994e-05,2]
[348227814,1736405436701,-501.95003014,9.994e-05,2]
[348227815,1736405436710,-500.0,9.994e-05,2]
[348227816,1736405436719,-501.4048424,9.994e-05,2]
[348227817,1736405436729,-500.0,9.994e-05,2]
[348227818,1736405436738,-177.34,9.994e-05,2]
[348227819,1736405436747,-500.0,9.994e-05,2]
[348227820,1736405436758,-542.80720033,9.994e-05,2]
[348227821,1736405436767,-502.31054968,9.994e-05,2]
[348227822,1736405436777,-501.34174891,9.994e-05,2]
[348227823,1736405436787,-500.0,9.994e-05,2]
[348227824,1736405436796,-500.0,9.994e-05,2]
[348227825,1736405436805,-442.10267242,9.994e-05,2]
[348227826,1736405436815,-500.0,9.994e-05,2]
[348227827,1736405436825,-500.0,9.994e-05,2]
[348227828,1736405436834,-500.0,9.994e-05,2]
[348227829,1736405436844,-500.0,9.994e-05,2]
[348227830,1736405436853,-500.0,9.994e-05,2]
[348227831,1736405436863,-500.0,9.994e-05,2]
[348227832,1736405436872,-500.0,9.994e-05,2]
[348227833,1736405436882,-500.0,9.994e-05,2]
[348227834,1736405436892,-500.0,9.994e-05,2]
[348227835,1736405436902,-500.0,9.994e-05,2]
[348227836,1736405436911,-500.0,9.994e-05,2]
[348227837,1736405436921,-505.34339161,9.994e-05,2]
[348227838,1736405436931,-500.71584545,9.994e-05,2]
[348227839,1736405436941,-506.98099146,9.994e-05,2]
[348227840,1736405436951,-500.0,9.994e-05,2]
[348227841,1736405436961,-500.0,9.994e-05,2]
[348227842,1736405436971,-500.0,9.994e-05,2]
[348227843,1736405436981,-534.08182817,9.994e-05,2]
[348227844,1736405436990,-500.0,9.994e-05,2]
[348227845,1736405437000,-500.0,9.994e-05,2]
[348227846,1736405437010,-229.89,9.994e-05,2]
[348227847,1736405437019,-500.0,9.994e-05,2]
[348227848,1736405437029,-500.0,9.994e-05,2]
[348227849,1736405437039,-502.60668863,9.994e-05,2]
[348227850,1736405437048,-500.0,9.994e-05,2]
[348227851,1736405437058,-500.0,9.994e-05,2]
[348227852,1736405437068,-500.0,9.994e-05,2]
[348227853,1736405437078,-427.81,9.994e-05,2]
[348227854,1736405437088,-574.81716959,9.994e-05,2]
[348227855,1736405437098,-500.0,9.994e-05,2]
[348227856,1736405437107,-500.0,9.994e-05,2]
[348227857,1736405437116,-500.0,9.994e-05,2]
[348227858,1736405437126,-302.11034489,9.994e-05,2]
[348227859,1736405437136,-500.0,9.994e-05,2]
[348227860,1736405437146,-500.0,9.994e-05,2]
[348227861,1736405437156,-500.0,9.994e-05,2]
[348227862,1736405437166,-604.13,9.994e-05,2]
[348227863,1736405437176,-500.0,9.994e-05,2]
[348227864,1736405437185,-591.06542342,9.994e-05,2]
[348227865,1736405437195,-500.0,9.994e-05,2]
[348227866,1736405437205,-500.0,9.994e-05,2]
[348227867,1736405437214,-500.0,9.994e-05,2]
[348227869,1736405437224,-500.0,9.994e-05,2]
[348227870,1736405437233,-500.0,9.994e-05,2]
[348227872,1736405437243,-500.0,9.994e-05,2]
[348227874,1736405437252,-500.0,9.994e-05,2]
[348227875,1736405437264,-500.0,9.994e-05,2]
[348227876,1736405437274,-501.13679502,9.994e-05,2]
[348227877,1736405437283,-500.0,9.994e-05,2]
[348227878,1736405437292,-506.84332705,9.994e-05,2]
[348227879,1736405437302,-157.118635,9.994e-05,2]
[348227880,1736405437311,-500.0,9.994e-05,2]
[348227881,1736405437321,-486.78152509,9.994e-05,2]
[348227882,1736405437330,-363.46923988,9.994e-05,2]
[348227883,1736405437340,-500.0,9.994e-05,2]
[348227884,1736405437350,-500.0,9.994e-05,2]
[348227885,1736405437359,-500.0,9.994e-05,2]
[348227886,1736405437370,-527.39,9.994e-05,2]
[348227887,1736405437379,-500.0,9.994e-05,2]
[348227888,1736405437389,-500.0,9.994e-05,2]
[348227889,1736405437398,-500.0,9.994e-05,2]
[348227890,1736405437409,-500.0,9.994e-05,2]
[348227891,1736405437418,-500.0,9.994e-05,2]
[348227892,1736405437428,-500.0,9.994e-05,2]
[348227894,1736405437438,-518.2441143,9.994e-05,2]
[348227895,1736405437447,-500.0,9.994e-05,2]
[348227896,1736405437457,-500.0,9.994e-05,2]
[348227897,1736405437466,-500.0,9.994e-05,2]
[348227898,1736405437476,-500.0,9.994e-05,2]
[348227899,1736405437485,-500.0,9.994e-05,2]
[348227900,1736405437494,-500.0,9.994e-05,2]
[348227901,1736405437504,-500.0,9.994e-05,2]
[348227902,1736405437513,-500.0,9.994e-05,2]
[348227903,1736405437524,-500.0,9.994e-05,2]
[348227904,1736405437538,-275.5449494,9.994e-05,2]
[348227905,1736405437548,-500.0,9.994e-05,2]
[348227906,1736405437557,-500.0,9.994e-05,2]
[348227907,1736405437567,-500.0,9.994e-05,2]
[348227908,1736405437577,-641.45302227,9.994e-05,2]
[348227909,1736405437586,-500.0,9.994e-05,2]
[348227910,1736405437596,-500.0,9.994e-05,2]
[348227911,1736405437605,-500.0,9.994e-05,2]
[348227912,1736405437615,-500.0,9.994e-05,2]
[348227913,1736405437624,-500.0,9.994e-05,2]
[348227914,1736405437633,-500.0,9.994e-05,2]
[348227915,1736405437643,-500.0,9.994e-05,2]
[348227916,1736405437652,-512.14524137,9.994e-05,2]
[348227917,1736405437662,-500.0,9.994e-05,2]
[348227918,1736405437672,-500.0,9.994e-05,2]
[348227919,1736405437682,-500.0,9.994e-05,2]
[348227920,1736405437692,-500.0,9.994e-05,2]
[348227921,1736405437701,-500.0,9.994e-05,2]
[348227922,1736405437711,-500.0,9.994e-05,2]
[348227923,1736405437720,-500.0,9.994e-05,2]
[348227924,1736405437729,-502.76760637,9.994e-05,2]
[348227925,1736405437739,-500.0,9.994e-05,2]
[348227926,1736405437748,-500.0,9.994e-05,2]
[348227927,1736405437758,-500.0,9.994e-05,2]
[348227928,1736405437768,-500.0,9.994e-05,2]
[348227929,1736405437777,-500.0,9.994e-05,2]
[348227930,1736405437787,-500.0,9.994e-05,2]
[348227931,1736405437796,-500.0,9.994e-05,2]
[348227932,1736405437805,-500.0,9.994e-05,2]
[348227933,1736405437815,-500.0,9.994e-05,2]
[348227934,1736405437824,-500.0,9.994e-05,2]
[348227935,1736405437834,-500.0,9.994e-05,2]
[348227936,1736405437843,-500.0,9.994e-05,2]
[348227937,1736405437852,-500.0,9.994e-05,2]
[348227938,1736405437862,-331.49726447,9.994e-05,2]
[348227939,1736405437871,-500.0,9.994e-05,2]
[348227940,1736405437880,-500.0,9.994e-05,2]
[348227941,1736405437890,-500.0,9.994e-05,2]
[348227943,1736405437899,-500.0,9.994e-05,2]
[348227945,1736405437908,-500.0,9.994e-05,2]
[348227947,1736405437918,-500.0,9.994e-05,2]
[348227949,1736405437927,-500.0,9.994e-05,2]
[348227950,1736405437936,-500.0,9.994e-05,2]
[348227952,1736405437946,-500.0,9.994e-05,2]
[348227954,1736405437955,-302.3514128,9.994e-05,2]
[348227956,1736405437964,-500.0,9.994e-05,2]
[348227958,1736405437974,-500.0,9.994e-05,2]
[348227959,1736405437983,-500.0,9.994e-05,2]
[348227960,1736405437992,-500.0,9.994e-05,2]
[348227961,1736405438001,-500.0,9.994e-05,2]
[348227962,1736405438012,-217.506298,9.994e-05,2]
[348227964,1736405438022,-383.27753366,9.994e-05,2]
[348227966,1736405438032,-500.0,9.994e-05,2]
[348227968,1736405438041,-504.85762711,9.994e-05,2]
[348227970,1736405438051,-500.0,9.994e-05,2]
[348227972,1736405438060,-1406.05,9.994e-05,2]
[348227974,1736405438070,-500.0,9.994e-05,2]
[348227976,1736405438079,-500.0,9.994e-05,2]
[348227978,1736405438089,-500.0,9.994e-05,2]
[348227980,1736405438099,-500.0,9.994e-05,2]
[348227982,1736405438108,-500.0,9.994e-05,2]
[348227984,1736405438117,-500.0,9.994e-05,2]
[348227986,1736405438127,-624.98,9.994e-05,2]
[348227989,1736405438137,-500.0,9.994e-05,2]
[348227992,1736405438146,-1734.0,9.994e-05,2]
[348227994,1736405438155,-669.48,9.994e-05,2]
[348227996,1736405438164,-500.0,9.994e-05,2]
[348227998,1736405438174,-1267.72,9.994e-05,2]
[348228000,1736405438183,-811.83,9.994e-05,2]
[348228002,1736405438193,-757.89,9.994e-05,2]
[348228004,1736405438202,-1576.59,9.994e-05,2]
[348228006,1736405438211,-1234.43371407,9.994e-05,2]
[348228008,1736405438220,-7732.0033943,9.996e-05,2]
[348228010,1736405438230,-2818.9204363,9.996e-05,2]
[348228012,1736405438239,-1038.10045899,9.999e-05,3]
[348228014,1736405438247,-1038.10045899,9.999e-05,3]
[348228016,1736405438257,-1038.10045899,9.999e-05,3]
[348228018,1736405438266,-1038.10045899,9.999e-05,3]
[348228020,1736405438276,-1038.10045899,9.999e-05,3]
[348228022,1736405438286,-500.0,9.999e-05,2]
[348228024,1736405438295,-1879.32,9.999e-05,2]
[348228026,1736405438305,-754.74,9.999e-05,2]
[348228028,1736405438315,-1290.53,9.999e-05,2]
[348228030,1736405438324,-578.1,9.999e-05,2]
[348228032,1736405438332,-612.53,9.999e-05,2]
[348228034,1736405438342,-500.0,9.999e-05,2]
[348228036,1736405438351,-992.22,9.999e-05,2]
[348228038,1736405438360,-1322.04,9.999e-05,2]
[348228040,1736405438370,-601.55,9.999e-05,2]
[348228042,1736405438379,-543.29,9.999e-05,2]
[348228044,1736405438388,-500.0,9.999e-05,2]
[348228046,1736405438398,-358.57218891,9.999e-05,2]
[348228048,1736405438407,-1041.0,0.0001,2]
[348228050,1736405438416,-297579.11545164,0.0001,2]
[348228056,1736405438462,-1535.79576675,0.0001,2]
[348228105,1736405439130,-200.4130569,9.993e-05,2]
[348228106,1736405439140,-500.0,9.993e-05,2]
[348228107,1736405439150,-500.0,9.993e-05,2]
[348228108,1736405439159,-4761592.91654363,0.0001,2]
[348228109,1736405439169,-3119.26846451,0.0001,2]
[348228110,1736405439179,-1687.37422237,0.0001,2]
[348228111,1736405439188,-3012.7048965,0.0001,2]
[348228112,1736405439198,-2837686.95887804,0.0001,2]
[348228114,1736405439208,-26444.65128512,0.0001,3]
[348228115,1736405439218,-170.49861168,0.0001,2]
[348228116,1736405439228,-164.43239005,0.0001,2]
[348228117,1736405439237,-172.6,0.0001,2]
[348228118,1736405439247,-291.6859584,0.0001,2]
[348228120,1736405439257,-154.01204402,0.0001,2]
[348228121,1736405439266,-154.01204401,0.0001,2]
[348228123,1736405439276,-154.01204401,0.0001,2]
[348228124,1736405439285,-154.01204401,0.0001,2]
[348228125,1736405439295,-197.24960957,0.0001,2]
[348228126,1736405439304,-1916.01198945,0.0001,2]
[348228127,1736405439314,-1916.01198945,0.0001,2]
[348228128,1736405439324,-1916.01198945,0.0001,2]
[348228129,1736405439334,-154.01204401,0.0001,2]
[348228130,1736405439344,-154.01204401,0.0001,2]
[348228131,1736405439354,-192.41131302,0.0001,2]
[348228132,1736405439364,-154.01204401,0.0001,2]
[348228133,1736405439374,-1080.73481926,0.0001,2]
[348228134,1736405439384,-154.01204401,0.0001,2]
[348228135,1736405439394,-3000.0,0.0001,2]
[348228137,1736405439404,-4479.5919521,0.0001,2]
[348228138,1736405439413,-4479.59195187,0.00010003,2]
[348228139,1736405439423,-180193.90878631,0.00010024,2]
[348228140,1736405439433,-151.0,0.00010024,2]
[348228141,1736405439443,-1500.0,0.00010075,2]
[348228142,1736405439453,-150.0,0.000101,2]
[348228143,1736405439462,-4479.59195187,0.00010107,2]
[348228144,1736405439472,-5972.96983225,0.00010133,4]
[348228145,1736405439481,-500.0,0.00010136,2]
[348228146,1736405439491,-157.2,0.00010137,2]
[348228147,1736405439500,-730.59,0.00010137,2]
[348228148,1736405439511,-150.0,0.000102,2]
[348228149,1736405439520,-150.0,0.000102,2]
[348228150,1736405439533,-150.0,0.000102,2]
[348228151,1736405439544,-150.0,0.000102,2]
[348228152,1736405439554,-1500.0,0.00010207,2]
[348228153,1736405439563,-4479.59195187,0.0001021,2]
[348228154,1736405439572,-500.0,0.00010267,2]
[348228155,1736405439582,-500.0,0.00010267,2]
[348228156,1736405439592,-682.86,0.00010267,2]
[348228157,1736405439602,-500.0,0.00010267,2]
[348228158,1736405439612,-500.0,0.00010267,2]
[348228159,1736405439621,-522.31,0.00010267,2]
[348228160,1736405439630,-500.0,0.00010267,2]
[348228161,1736405439639,-1010.57,0.00010267,2]
[348228162,1736405439649,-500.0,0.00010267,2]
[348228163,1736405439658,-500.0,0.00010267,2]
[348228164,1736405439667,-500.0,0.00010267,2]
[348228165,1736405439677,-500.0,0.00010267,2]
[348228166,1736405439686,-500.0,0.00010267,2]
[348228167,1736405439695,-500.0,0.00010267,2]
[348228168,1736405439705,-500.0,0.00010267,2]
[348228169,1736405439715,-500.0,0.00010267,2]
[348228170,1736405439724,-500.0,0.00010267,2]
[348228171,1736405439734,-500.0,0.00010267,2]
[348228172,1736405439743,-749.469039,0.00010267,2]
[348228173,1736405439753,-500.0,0.00010267,2]
[348228174,1736405439762,-500.0,0.00010267,2]
[348228175,1736405439772,-500.0,0.00010267,2]
[348228176,1736405439782,-500.0,0.00010267,2]
[348228177,1736405439791,-500.0,0.00010267,2]
[348228178,1736405439801,-1339.52,0.00010267,2]
[348228179,1736405439810,-500.0,0.00010267,2]
[348228180,1736405439819,-500.0,0.00010267,2]
[348228181,1736405439828,-683.333522,0.00010267,2]
[348228182,1736405439837,-500.0,0.00010267,2]
[348228183,1736405439846,-500.0,0.00010267,2]
[348228184,1736405439856,-500.0,0.00010267,2]
[348228185,1736405439866,-500.0,0.00010267,2]
[348228186,1736405439875,-500.0,0.00010267,2]
[348228187,1736405439885,-500.0,0.00010267,2]
[348228188,1736405439895,-500.0,0.00010267,2]
[348228189,1736405439904,-500.0,0.00010267,2]
[348228190,1736405439913,-383.76,0.00010267,2]
[348228191,1736405439922,-500.0,0.00010267,2]
[348228192,1736405439932,-500.0,0.00010267,2]
[348228193,1736405439943,-500.0,0.00010267,2]
[348228194,1736405439954,-500.0,0.00010267,2]
[348228195,1736405439964,-882.62,0.00010267,2]
[348228196,1736405439973,-500.0,0.00010267,2]
[348228197,1736405439982,-500.0,0.00010267,2]
[348228198,1736405439992,-500.0,0.00010267,2]
[348228200,1736405440001,-500.0,0.00010267,2]
[348228201,1736405440011,-500.0,0.00010267,2]
[348228202,1736405440021,-500.0,0.00010267,2]
[348228203,1736405440031,-500.0,0.00010267,2]
[348228204,1736405440040,-500.0,0.00010267,2]
[348228205,1736405440050,-500.0,0.00010267,2]
[348228206,1736405440059,-500.0,0.00010267,2]
[348228207,1736405440069,-500.0,0.00010267,2]
[348228208,1736405440078,-500.0,0.00010267,2]
[348228209,1736405440088,-500.0,0.00010267,2]
[348228210,1736405440097,-500.0,0.00010267,2]
[348228211,1736405440107,-500.0,0.00010267,2]
[348228212,1736405440116,-184.20178722,0.00010267,2]
[348228213,1736405440126,-903.58,0.00010267,2]
[348228214,1736405440136,-1421.37,0.00010267,2]
[348228215,1736405440145,-500.0,0.00010267,2]
[348228216,1736405440155,-500.0,0.00010267,2]
[348228217,1736405440164,-505.33721338,0.00010267,2]
[348228218,1736405440174,-500.38248434,0.00010267,2]
[348228219,1736405440183,-500.0,0.00010267,2]
[348228220,1736405440193,-500.0,0.00010267,2]
[348228221,1736405440202,-500.0,0.00010267,2]
[348228222,1736405440212,-500.0,0.00010267,2]
[348228223,1736405440221,-500.0,0.00010267,2]
[348228224,1736405440231,-500.0,0.00010267,2]
[348228225,1736405440240,-500.0,0.00010267,2]
[348228226,1736405440248,-500.0,0.00010267,2]
[348228227,1736405440256,-500.0,0.00010267,2]
[348228228,1736405440265,-1125.84,0.00010267,2]
[348228229,1736405440274,-500.0,0.00010267,2]
[348228230,1736405440283,-501.5329746,0.00010267,2]
[348228231,1736405440293,-500.0,0.00010267,2]
[348228232,1736405440302,-500.0,0.00010267,2]
[348228233,1736405440311,-500.0,0.00010267,2]
[348228234,1736405440321,-500.0,0.00010267,2]
[348228235,1736405440331,-2991.42,0.00010267,2]
[348228236,1736405440341,-500.0,0.00010267,2]
[348228237,1736405440350,-500.0,0.00010267,2]
[348228238,1736405440360,-500.0,0.00010267,2]
[348228239,1736405440370,-500.0,0.00010267,2]
[348228240,1736405440379,-500.0,0.00010267,2]
[348228241,1736405440389,-500.0,0.00010267,2]
[348228242,1736405440398,-500.0,0.00010267,2]
[348228243,1736405440407,-500.0,0.00010267,2]
[348228244,1736405440418,-500.0,0.00010267,2]
[348228245,1736405440427,-500.0,0.00010267,2]
[348228246,1736405440436,-510.11680427,0.00010267,2]
[348228247,1736405440445,-500.0,0.00010267,2]
[348228248,1736405440453,-599.79,0.00010267,2]
[348228249,1736405440461,-500.0,0.00010267,2]
[348228250,1736405440470,-351.66,0.00010267,2]
[348228251,1736405440478,-500.0,0.00010267,2]
[348228252,1736405440486,-500.0,0.00010267,2]
[348228253,1736405440496,-500.0,0.00010267,2]
[348228254,1736405440506,-350.58918882,0.00010267,2]
[348228255,1736405440516,-500.0,0.00010267,2]
[348228256,1736405440528,-246.10587077,0.00010267,2]
[348228257,1736405440538,-285.807363,0.00010267,2]
[348228258,1736405440548,-500.0,0.00010267,2]
[348228259,1736405440557,-500.0,0.00010267,2]
[348228260,1736405440567,-500.0,0.00010267,2]
[348228261,1736405440576,-500.0,0.00010267,2]
[348228262,1736405440586,-506.64576768,0.00010267,2]
[348228263,1736405440595,-560.72468788,0.00010267,2]
[348228264,1736405440605,-500.0,0.00010267,2]
[348228265,1736405440614,-503.25056692,0.00010267,2]
[348228266,1736405440623,-500.0,0.00010267,2]
[348228267,1736405440632,-500.0,0.00010267,2]
[348228268,1736405440641,-500.0,0.00010267,2]
[348228269,1736405440650,-500.0,0.00010267,2]
[348228270,1736405440660,-500.0,0.00010267,2]
[348228271,1736405440669,-500.0,0.00010267,2]
[348228272,1736405440678,-500.0,0.00010267,2]
[348228273,1736405440689,-723.06,0.00010267,2]
[348228274,1736405440699,-500.0,0.00010267,2]
[348228275,1736405440712,-500.0,0.00010267,2]
[348228276,1736405440721,-500.0,0.00010267,2]
[348228277,1736405440730,-500.0,0.00010267,2]
[348228278,1736405440739,-450.48,0.00010267,2]
[348228279,1736405440748,-500.0,0.00010267,2]
[348228280,1736405440758,-894.33,0.00010267,2]
[348228281,1736405440770,-500.0,0.00010267,2]
[348228282,1736405440779,-500.0,0.00010267,2]
[348228283,1736405440789,-500.0,0.00010267,2]
[348228284,1736405440798,-500.0,0.00010267,2]
[348228285,1736405440807,-500.0,0.00010267,2]
[348228286,1736405440816,-500.0,0.00010267,2]
[348228287,1736405440826,-843.34,0.00010267,2]
[348228288,1736405440836,-290.15032541,0.00010267,2]
[348228289,1736405440845,-500.0,0.00010267,2]
[348228290,1736405440855,-500.0,0.00010267,2]
[348228291,1736405440865,-3007.9,0.00010267,2]
[348228292,1736405440874,-500.0,0.00010267,2]
[348228293,1736405440883,-500.0,0.00010267,2]
[348228294,1736405440892,-500.0,0.00010267,2]
[348228295,1736405440901,-500.0,0.00010267,2]
[348228296,1736405440910,-500.0,0.00010267,2]
[348228297,1736405440919,-500.0,0.00010267,2]
[348228298,1736405440926,-500.0,0.00010267,2]
[348228299,1736405440935,-1064.22,0.00010267,2]
[348228300,1736405440943,-1512.81,0.00010267,2]
[348228301,1736405440952,-607.29,0.00010267,2]
[348228302,1736405440961,-544.12513733,0.00010267,2]
[348228303,1736405440969,-500.0,0.00010267,2]
[348228304,1736405440978,-500.0,0.00010267,2]
[348228305,1736405440986,-500.0,0.00010267,2]
[348228306,1736405440995,-500.0,0.00010267,2]
[348228307,1736405441004,-500.0,0.00010267,2]
[348228308,1736405441016,-551.28,0.00010267,2]
[348228309,1736405441024,-604.73,0.00010267,2]
[348228310,1736405441036,-500.0,0.00010267,2]
[348228311,1736405441045,-500.0,0.00010267,2]
[348228312,1736405441055,-616.53840237,0.00010267,2]
[348228313,1736405441064,-500.0,0.00010267,2]
[348228314,1736405441073,-500.0,0.00010267,2]
[348228315,1736405441083,-557.74,0.00010267,2]
[348228316,1736405441093,-809.42,0.00010267,2]
[348228317,1736405441103,-500.0,0.00010267,2]
[348228318,1736405441112,-500.0,0.00010267,2]
[348228319,1736405441121,-500.0,0.00010267,2]
[348228320,1736405441131,-500.0,0.00010267,2]
[348228321,1736405441141,-1464.42,0.00010267,2]
[348228322,1736405441150,-604.39936897,0.00010267,2]
[348228323,1736405441159,-500.0,0.00010267,2]
[348228324,1736405441168,-500.0,0.00010267,2]
[348228325,1736405441178,-1362.68,0.00010267,2]
[348228326,1736405441187,-500.0,0.00010267,2]
[348228327,1736405441197,-500.0,0.00010267,2]
[348228328,1736405441206,-500.0,0.00010267,2]
[348228329,1736405441215,-1152.04,0.00010267,2]
[348228330,1736405441226,-503.04899765,0.00010267,2]
[348228331,1736405441235,-456.4968801,0.00010267,2]
[348228332,1736405441245,-500.0,0.00010267,2]
[348228333,1736405441255,-500.0,0.00010267,2]
[348228334,1736405441267,-500.0,0.00010267,2]
[348228335,1736405441276,-500.0,0.00010267,2]
[348228336,1736405441286,-500.0,0.00010267,2]
[348228337,1736405441295,-500.0,0.00010267,2]
[348228338,1736405441304,-500.0,0.00010267,2]
[348228339,1736405441314,-500.0,0.00010267,2]
[348228340,1736405441323,-500.0,0.00010267,2]
[348228341,1736405441332,-500.0,0.00010267,2]
[348228342,1736405441341,-500.0,0.00010267,2]
[348228343,1736405441350,-786.45,0.00010267,2]
[348228344,1736405441359,-500.80571382,0.00010267,2]
[348228345,1736405441369,-2052.45,0.00010267,2]
[348228346,1736405441379,-500.0,0.00010267,2]
[348228347,1736405441388,-500.0,0.00010267,2]
[348228348,1736405441398,-227.63015514,0.00010267,2]
[348228349,1736405441407,-500.0,0.00010267,2]
[348228350,1736405441417,-502.84837389,0.00010267,2]
[348228351,1736405441427,-500.0,0.00010267,2]
[348228352,1736405441436,-500.0,0.00010267,2]
[348228353,1736405441445,-500.0,0.00010267,2]
[348228354,1736405441455,-500.0,0.00010267,2]
[348228355,1736405441464,-500.0,0.00010267,2]
[348228356,1736405441474,-500.0,0.00010267,2]
[348228357,1736405441483,-601.85801527,0.00010267,2]
[348228358,1736405441492,-500.0,0.00010267,2]
[348228359,1736405441502,-500.0,0.00010267,2]
[348228360,1736405441512,-667.94,0.00010267,2]
[348228361,1736405441522,-500.0,0.00010267,2]
[348228362,1736405441535,-500.0,0.00010267,2]
[348228363,1736405441545,-584.2014866,0.00010267,2]
[348228364,1736405441555,-500.0,0.00010267,2]
[348228365,1736405441564,-500.0,0.00010267,2]
[348228366,1736405441573,-500.0,0.00010267,2]
[348228367,1736405441584,-500.0,0.00010267,2]
[348228368,1736405441593,-502.39315846,0.00010267,2]
[348228369,1736405441603,-500.0,0.00010267,2]
[348228370,1736405441613,-500.0,0.00010267,2]
[348228371,1736405441623,-500.0,0.00010267,2]
[348228372,1736405441631,-500.0,0.00010267,2]
[348228373,1736405441640,-500.0,0.00010267,2]
[348228374,1736405441649,-924.9,0.00010267,2]
[348228375,1736405441658,-500.0,0.00010267,2]
[348228376,1736405441668,-500.0,0.00010267,2]
[348228377,1736405441677,-500.0,0.00010267,2]
[348228378,1736405441687,-1149.08,0.00010267,2]
[348228379,1736405441696,-500.0,0.00010267,2]
[348228380,1736405441707,-500.0,0.00010267,2]
[348228381,1736405441716,-500.0,0.00010267,2]
[348228382,1736405441726,-500.0,0.00010267,2]
[348228383,1736405441736,-500.0,0.00010267,2]
[348228384,1736405441747,-500.0,0.00010267,2]
[348228385,1736405441758,-535.96604094,0.00010267,2]
[348228386,1736405441768,-500.0,0.00010267,2]
[348228387,1736405441777,-654.67,0.00010267,2]
[348228388,1736405441787,-500.0,0.00010267,2]
[348228389,1736405441798,-753.42,0.00010267,2]
[348228390,1736405441808,-500.0,0.00010267,2]
[348228391,1736405441817,-500.0,0.00010267,2]
[348228392,1736405441827,-500.0,0.00010267,2]
[348228393,1736405441837,-503.1604069,0.00010267,2]
[348228394,1736405441847,-500.0,0.00010267,2]
[348228395,1736405441856,-501.85316229,0.00010267,2]
[348228396,1736405441866,-501.01080818,0.00010267,2]
[348228397,1736405441875,-500.0,0.00010267,2]
[348228398,1736405441884,-501.22825599,0.00010267,2]
[348228399,1736405441894,-500.0,0.00010267,2]
[348228400,1736405441904,-500.0,0.00010267,2]
[348228401,1736405441913,-500.0,0.00010267,2]
[348228402,1736405441923,-501.31978582,0.00010267,2]
[348228403,1736405441932,-500.0,0.00010267,2]
[348228404,1736405441942,-446.68840048,0.00010267,2]
[348228405,1736405441952,-500.0,0.00010267,2]
[348228406,1736405441962,-1570.8,0.00010267,2]
[348228407,1736405441972,-500.0,0.00010267,2]
[348228408,1736405441982,-1183.75,0.00010267,2]
[348228409,1736405441991,-500.0,0.00010267,2]
[348228410,1736405442001,-500.99187282,0.00010267,2]
[348228411,1736405442011,-500.0,0.00010267,2]
[348228412,1736405442021,-506.48918803,0.00010267,2]
[348228413,1736405442030,-614.66333969,0.00010267,2]
[348228414,1736405442039,-500.0,0.00010267,2]
[348228415,1736405442049,-502.9564839,0.00010267,2]
[348228416,1736405442059,-500.0,0.00010267,2]
[348228417,1736405442068,-500.0,0.00010267,2]
[348228418,1736405442076,-672.42,0.00010267,2]
[348228419,1736405442085,-500.0,0.00010267,2]